Cogmind - Beta 14 @@@ ROGUE MODE // 2024.08.19 @ 02:21:34 Player: Tim Result: Destroyed by P4-KQ6(R) with Subdweller Laser Performance ------------- Evolutions (0) 0 Regions Visited (3) 600 Robots Destroyed (37) 185 Value Destroyed (882) 882 Prototype IDs (0) 0 Alien Tech Used (0) 0 Bonus (49) 49 TOTAL SCORE: 1716 Bonus ------- Follower Combat Kills 49 Cogmind --------- Core Integrity 0/250 Matter 290/300 Energy 88/100 System Corruption 0% Temperature Cool (6) Movement Walking (120) Location -10/Subcaves Parts ------- > --- POWER (1) -------- (None) > --- PROPULSION (2) --- Aluminum Leg Aluminum Leg > --- UTILITY (2) ------ Medium Storage Unit Structural Scanner > --- WEAPON (2) ------- Spread Laser Light Assault Rifle > --- INVENTORY (10) --- Aluminum Leg Aluminum Leg Aluminum Leg Aluminum Leg Aluminum Leg Medium Storage Unit Large Storage Unit Signal Interpreter Seismic Detector Peak State ------------ > --- POWER ------------ Ion Engine > --- PROPULSION ------- Aluminum Leg Aluminum Leg > --- UTILITY ---------- Small Storage Unit Improved Terrain Scanner > --- WEAPON ----------- Assault Rifle Light Assault Rifle > --- INVENTORY -------- Ion Engine Light Treads Light Treads Wheel Compact Wheel Seismic Detector Light Assault Rifle Mining Laser [Rating: 9] Favorites ----------- Power Light Ion Engine Engine Light Ion Engine Propulsion Aluminum Leg Leg Aluminum Leg Utility Medium Storage Unit Device Structural Scanner Storage Medium Storage Unit Weapon Spread Laser Energy Gun Spread Laser Ballistic Gun Light Assault Rifle Launcher Grenade Launcher Special Weapon Mining Laser Build | -11 -10 -10 -10 ------- Run | Yrd Mat Min Sub Slots Evolved . | . . . . Power . | . . . . Propulsion . | . . . . Utility . | . . . . Weapon . | . . . . Parts Attached 42 | 9 19 12 2 Power 6 | 1 3 2 . Engine 6 | 1 3 2 . Core . | . . . . Reactor . | . . . . Propulsion 18 | 2 8 8 . Treads . | . . . . Leg 18 | 2 8 8 . Wheel . | . . . . Hover . | . . . . Flight . | . . . . Utility 6 | 4 1 1 . Device 4 | 3 . 1 . Storage 2 | 1 1 . . Processor . | . . . . Hackware . | . . . . Protection . | . . . . Artifact . | . . . . Weapon 12 | 2 7 1 2 Energy Gun 5 | . 5 . . Energy Cannon . | . . . . Ballistic Gun 4 | 2 . 1 1 Ballistic Cannon . | . . . . Launcher 1 | . 1 . . Special Weapon 2 | . 1 . 1 Impact Weapon . | . . . . Slashing Weapon . | . . . . Piercing Weapon . | . . . . Special Melee Weapon . | . . . . Unidentified Prototypes . | . . . . Parts Lost 6 | . 2 2 2 Power 3 | . 1 1 1 Propulsion . | . . . . Utility . | . . . . Weapon 3 | . 1 1 1 Highest Loss Streak 2 | . 1 2 2 To Critical Strikes . | . . . . Average Slot Usage (%) 98 | . 99 99 96 Engine 13 | . 14 13 12 Leg 28 | . 28 28 28 Device 14 | . 14 14 14 Storage 14 | . 14 14 14 Energy Gun 15 | . 17 14 14 Ballistic Gun 7 | . 4 11 5 Launcher 3 | . 5 2 . Special Weapon 1 | . . . 6 Peak Build Rating 9 | 9 9 9 9 Average Rating 8 | 7 8 8 8 On Entrance 6 | . 8 9 9 Naked Turns . | . . . . Heaviest Build 22 | 14 22 20 18 Greatest Support 20 | 20 20 20 20 Greatest Overweight (x) 6 | 4 6 6 . Average Overweight (x) . | 1 . . . Largest Inventory Capacity 10 | 8 10 10 10 Average Capacity 9 | 7 9 10 10 Most Carried 10 | 8 10 10 10 Average Carried 9 | 7 9 9 9 Final Capacity 10 | 8 10 10 10 Final Carried 10 | 8 10 10 9 Class Distribution -------------------- 58% | Mutant 41% | Scavenger-Mutant Dominant Class ---------------- Mutant | -10/Materials Scavenger-Mutant | -10/Mines Mutant | -10/Subcaves Resources | -11 -10 -10 -10 ----------- Run | Yrd Mat Min Sub Matter Collected 771 | 271 363 127 10 Remotely . | . . . . Salvage Created 1039 | 65 705 170 99 Parts 71 | 10 48 8 5 Haulers Intercepted . | . . . . Recyclers Shooed 1 | . 1 . . Parts Field Recycled . | . . . . Retrieved Matter . | . . . . Parts Self-Destructed 5 | . . . 5 Prevented . | . . . . Kills | -11 -10 -10 -10 ------- Run | Yrd Mat Min Sub Combat Hostiles Destroyed 25 | . 17 5 3 Guns 18 | . 10 5 3 AOE 5 | . 5 . . Classes Destroyed 8 | 1 6 . 1 Worker 2 | . 1 1 . Builder 2 | . 2 . . Tunneler 3 | 3 . . . Recycler 2 | . 2 . . Watcher 3 | . 3 . . Swarmer 7 | . 6 . 1 Grunt 16 | . 11 5 . Subdweller 2 | . . . 2 Best Kill Streak 6 | 2 6 2 2 Combat Bots Only 4 | . 4 2 2 Max Kills in Single Turn 2 | 1 2 1 1 Gunslinging 1 | . 1 . . Exploded 1 | . 1 . . Melee . | . . . . Uniques/NPCs Destroyed . | . . . . Combat | -11 -10 -10 -10 -------- Run | Yrd Mat Min Sub Hostile Shots Fired 142 | . 89 37 16 Missed 45 | . 34 7 4 Damage Taken 1408 | . 789 393 226 Core 250 | . 90 47 113 Absorbed by Shields . | . . . . Core Remaining (%) 100 | 100 . . . Volleys Fired 112 | 6 64 26 16 Largest 2 | 2 2 2 1 Hottest 100 | 40 100 85 100 Shots Fired 164 | 12 104 32 16 Gun 143 | 12 92 32 7 Cannon . | . . . . Launcher 10 | . 10 . . Special 11 | . 2 . 9 Kinetic 42 | 12 24 6 . Thermal 46 | . 4 26 16 Explosive 10 | . 10 . . Electromagnetic 66 | . 66 . . Robot Hit Streak 16 | 8 9 13 16 Robot Miss Streak 6 | 1 6 2 4 Penetration Max . | . . . . Secondary Targets 2 | . 2 . . Max Gunslinging Chain 1 | . 1 . . Shots Hit Robots 104 | 8 62 27 7 Core Hits 84 | 5 37 32 10 Critical Kills . | . . . . Critical Parts Destroyed . | . . . . Critical Strikes 2 | . 2 . . Corrupt 2 | . 2 . . Melee Attacks . | . . . . Impact . | . . . . Slashing . | . . . . Piercing . | . . . . Sneak Attacks . | . . . . Combat Hostiles . | . . . . Follow-up Attacks . | . . . . Damage Inflicted 2060 | 80 1489 386 105 Guns 1282 | 80 715 382 105 Cannons . | . . . . Explosions 765 | . 765 . . Melee . | . . . . Ramming 13 | . 9 4 . Kinetic 239 | 80 127 32 . Thermal 674 | . 219 350 105 Explosive 554 | . 554 . . Electromagnetic 580 | . 580 . . Impact . | . . . . Slashing . | . . . . Piercing . | . . . . Highest Corruption . | . . . . Average Corruption . | . . . . Corruption Purged . | . . . . Corruption Blocked . | . . . . Overload Shots . | . . . . Overflow Damage 16 | . 16 . . Projectiles . | . . . . Explosions 16 | . 16 . . Melee . | . . . . Knockbacks . | . . . . Impact . | . . . . Kinetic . | . . . . Secondary . | . . . . Self-Inflicted Damage 84 | . 84 . . Shots 4 | . 4 . . Rammed . | . . . . Targets Rammed 3 | . 1 2 . Kicked 3 | . 1 2 . Crushed . | . . . . Highest Temperature 232 | . 132 232 . Average Temperature 50 | . 34 81 . Received Heat Transfer 570 | . 348 210 12 Siege Activations . | . . . . Robots Corrupted 2 | . 2 . . Combat Hostiles 2 | . 2 . . Parts Fried 4 | . 4 . . Impact Corruptions . | . . . . Robots Melted . | . . . . Combat Hostiles . | . . . . Parts Melted 2 | . 2 . . Heat Transferred 985 | . 410 445 130 Parts Sabotaged . | . . . . Parts Stolen . | . . . . Parts Stripped . | . . . . Power Chain Reactions 3 | . 3 . . Alert | -11 -10 -10 -10 ------- Run | Yrd Mat Min Sub Peak Influence 258 | 15 258 169 . Initial 69 | . . 69 . Average 74 | 4 134 53 . Maximum Alert Level 1 | . 1 . . Low Security (%) 97 | 100 92 100 . Level 1 2 | . 7 . . Level 2 . | . . . . Level 3 . | . . . . Level 4 . | . . . . Level 5 . | . . . . High Security . | . . . . Max Security . | . . . . Squads Dispatched 2 | . 2 . . Investigation . | . . . . Extermination . | . . . . Reinforcement 2 | . 2 . . Assault . | . . . . Garrison . | . . . . Intercept . | . . . . Searches Triggered . | . . . . Construction Impeded . | . . . . Haulers Reinforced . | . . . . Active Scanning Responses . | . . . . Cargo Convoy Interrupts . | . . . . Stealth | -11 -10 -10 -10 --------- Run | Yrd Mat Min Sub Distress Signals 2 | . 2 . . Communications Jammed . | . . . . Distress Signals . | . . . . Times Spotted 45 | . 29 9 7 Peak Tracking Total 5 | . 5 3 4 Tactical Retreats 4 | . 4 . . Traps | -11 -10 -10 -10 ------- Run | Yrd Mat Min Sub Traps Triggered 2 | . 2 . . Indirectly . | . . . . Trap Hack Attempts . | . . . . Triggered . | . . . . Disarmed . | . . . . Reprogrammed . | . . . . Reused . | . . . . Traps Extracted . | . . . . Installed . | . . . . Triggered . | . . . . Machines | -11 -10 -10 -10 ---------- Run | Yrd Mat Min Sub Machines Disabled 3 | . 2 1 . Max in Single Turn 1 | . 1 . . Machines Repaired . | . . . . Machines Dismantled . | . . . . Machines Sabotaged . | . . . . Overloaded Fab Kills . | . . . . Hacking | -11 -10 -10 -10 --------- Run | Yrd Mat Min Sub Machines Accessed 3 | . 3 . . Terminals 3 | . 3 . . Fabricators . | . . . . Repair Stations . | . . . . Recycling Units . | . . . . Scanalyzers . | . . . . Garrison Access . | . . . . Total Hacks 9 | . 9 . . Successful 5 | . 5 . . Failed 4 | . 4 . . Catastrophic . | . . . . Database Lockouts . | . . . . Manual 1 | . 1 . . Terminals 9 | . 9 . . Fabricators . | . . . . Repair Stations . | . . . . Recycling Units . | . . . . Scanalyzers . | . . . . Garrison Access . | . . . . Terminal Hacks 5 | . 5 . . Level Access Points 1 | . 1 . . Alert Level 2 | . 2 . . Locate Traps 1 | . 1 . . Zone Layout 1 | . 1 . . Fabricator Hacks . | . . . . Repair Station Hacks . | . . . . Recycling Unit Hacks . | . . . . Scanalyzer . | . . . . Garrison Access Hacks . | . . . . Unauthorized Hacks . | . . . . Terminals . | . . . . Fabricators . | . . . . Repair Stations . | . . . . Recycling Units . | . . . . Scanalyzers . | . . . . Garrison Access . | . . . . Data Cores Recovered . | . . . . Used . | . . . . Hacking Detections 3 | . 3 . . Full Trace Events . | . . . . Feedback Events . | . . . . Feedback Blocked . | . . . . Robot Schematics Acquired . | . . . . Robots Built . | . . . . Authchips . | . . . . Time . | . . . . Total Robot Build Rating . | . . . . Part Schematics Acquired . | . . . . Parts Built . | . . . . Authchips . | . . . . Time . | . . . . Total Part Build Rating . | . . . . Parts Repaired . | . . . . Time . | . . . . Parts Recycled . | . . . . Recycled Matter . | . . . . Retrieved Matter . | . . . . Retrieved Components . | . . . . Parts Scanalyzed . | . . . . Part Schematics Acquired . | . . . . Parts Damaged . | . . . . Bothacking | -11 -10 -10 -10 ------------ Run | Yrd Mat Min Sub Used RIF Installer . | . . . . Robots Hacked . | . . . . Non-combat . | . . . . Combat . | . . . . Robot Hacks Applied . | . . . . Relay Couplers Released . | . . . . Fabnet Peak Effective % . | . . . . Robots Rewired . | . . . . Allies Hacked . | . . . . Hacks Repelled . | . . . . Allies | -11 -10 -10 -10 -------- Run | Yrd Mat Min Sub Total Allies 3 | . . 3 . Largest Group 3 | . . 3 . Highest-Rated Group 40 | . . 40 . Highest-Rated Ally 16 | . . 16 . Total Orders . | . . . . Ally Attacks 29 | . . 29 . Total Damage 273 | . . 273 . Kills 3 | . . 3 . Allies Corrupted . | . . . . Allies Melted . | . . . . Intel | -11 -10 -10 -10 ------- Run | Yrd Mat Min Sub Robot Analysis Total . | . . . . Derelict Logs Recovered 1 | . . . 1 Drone Launches . | . . . . Drone Recoveries . | . . . . Exploration | -11 -10 -10 -10 ------------- Run | Yrd Mat Min Sub Turns Passed 4085 | 769 1389 1366 561 Spaces Moved 2234 | 182 855 785 412 Core 67 | 54 1 12 . Treads . | . . . . Legs 2167 | 128 854 773 412 Wheels . | . . . . Hover . | . . . . Flight . | . . . . Fastest Speed 50 | 50 120 120 120 Average Speed 128 | 150 131 123 120 Slowest Speed 350 | 250 350 350 120 Overloaded Moves . | . . . . Propulsion Burnouts . | . . . . Robots Hopped . | . . . . Cave-ins Triggered . | . . . . Exploration Rate (%) 56 | 10 89 101 27 Regions Visited 3 Branch Regions 2 Pre-discovered Areas 1 | . . 1 . Known Exits Taken . | . . . . Unknown Exits Taken 3 | 1 1 1 . Scrap Searched 1 | . . 1 . Spaces Dug 8 | . 8 . . Terrain Destroyed 22 | . 22 . . Melee . | . . . . Projectile 2 | . 2 . . AOE 20 | . 20 . . Terrain Rammed . | . . . . Walls Destroyed . | . . . . Machines Disabled . | . . . . Actions | -11 -10 -10 -10 --------- Run | Yrd Mat Min Sub Total 3278 | 663 1020 1151 444 Wait 830 | 456 44 316 14 Move 2231 | 181 854 784 412 Hop . | . . . . Pick Up 28 | 10 15 3 . Fast Attach 9 | 6 3 . . Attach 6 | 1 2 2 1 Detach . | . . . . Swap 27 | 2 14 10 1 Drop 32 | 1 23 8 . Fire 112 | 6 64 26 16 Melee . | . . . . Ram . | . . . . Kick 3 | . 1 2 . Crush . | . . . . Escape Stasis . | . . . . Rewire . | . . . . Trap . | . . . . Miscellaneous . | . . . . Route ------- -11/Scrapyard -10/Materials (discovered 4 exits: *Mat x3 / [*Min]) -10/Mines (discovered 3 exits: *Mat x2 / [*Sub]) -10/Subcaves (discovered 1 exit: Rec) History --------- Turn | Location | Event 31 | -11/Scrapyard | Discovered new exit (range 15) 770 | -11/Scrapyard | Entered Materials 788 | -10/Materials | Build established: Mutant 968 | -10/Materials | Discovered new exit (range 12) 1670 | -10/Materials | Derelicts attacked the area 1689 | -10/Materials | Discovered new exit (range 15) 1958 | -10/Materials | Discovered new exit (range 15) 2066 | -10/Materials | Identified exit to Materials 2132 | -10/Materials | Build established: Scavenger-Mutant 2159 | -10/Materials | Entered Mines 2163 | -10/Mines | Assisted by bots powering up and referring to "LRC-V3" 2344 | -10/Mines | Lost 3 allies 2503 | -10/Mines | Discovered exit to Materials (range 10) 2600 | -10/Mines | Core integrity fell below 50% 2735 | -10/Mines | Discovered exit to Materials (range 10) 2777 | -10/Mines | Found a damaged Exp. Sensor Array with a note attached 2811 | -10/Mines | Found a hidden stash of uninstalled traps 2874 | -10/Mines | Learned location of Storage (-7) 3515 | -10/Mines | Discovered new exit (range 6) 3525 | -10/Mines | Entered Subcaves 3606 | -10/Subcaves | A swath of the cavern ceiling suddenly collapsed 3774 | -10/Subcaves | A swath of the cavern ceiling suddenly collapsed 3903 | -10/Subcaves | Identified exit to Recycling 4036 | -10/Subcaves | Build established: Mutant 4071 | -10/Subcaves | Core integrity fell below 20% 4086 | -10/Subcaves | Destroyed by P4-KQ6(R) with Subdweller Laser Last Messages --------------- AMBIENT_HEAT=-10 GOAL=ESCAPE 03568_ UB-CGU(u) builds Twisted Machinery. A swath of the cavern ceiling suddenly collapses. 03733_ UB-CGU(u) tweaks Twisted Machinery. A swath of the cavern ceiling suddenly collapses. 03837_ UB-CGU(u) builds Twisted Machinery. 03852_ Acquired 10 matter. 03853_ UB-CGU(u) builds Twisted Machinery. 03903_ Acquired derelict log, extracted data. Loading 1 Subcaves exit... 03945_ S-10 Pest destroyed. 03953_ Flight Unit fries itself beyond repair. 03992_ Subatomizers dissect the Sub. Optics. 03997_ ID-6AQ(R) affixes Scrap Shield Fragment to Scrap Shield. 04015_ Lgt. Ion Engine destroyed. 04017_ Mining Laser destroyed. 04018_ ID-6AQ(R) destroyed. 04020_ LR-AGP(R) destroyed. 3A-D85(R) emerges from concealment. Map ----- +----------------------------------------------------+ | ?????????????????????????????????????????????????? | | ?????????????????????????????????????????????????? | | ?????????????????????????????????????????????????? | | ?????????????????????????????????????????????????? | | ?????????????????????????????????????????????????? | | ?????????????????????????????????????????????????? | | ?????????????????????????????????????????????????? | | ?????????????????????????????????????????????????? | | ?????????????????????????????????????????????????? | | ????????????????????????###??????????????????????? | | ??????????????????????? ##??????????????????????? | | ?????????????????????? ??????????????????????? | | ?????????????????????? R ##?????????????? ????? | | ?????????????????????? ##?????????????? ???? | | ?????????????????????? ??????????????## ???? | | ??????????????????????? ???????????????### ??? | | ????????????????### ??? ????????????????## # | | ????????????????### ?? ?? ###??????????## # | | ????????????????## ??## ??#######???????### # | | ????????????????### # ??## #####???????## | | ????????????????## ### ?## ####??????## ? | | ????????????????## ## ##?## ########??????# | | ????????????????### #### ########?????# | | ????????????????## ##### ######### | | ????????????????### #### ######## | | ????????????????## @ ## ? ## ## # | | ????????????????## ## ### | | ????????????????## ## ### | | ????????????????### ## ## # | | ????????????????### ## ## | | ?????????????????## ## ### ### | | ?????????????????## ### ## | | ?????????????????## ##### # ##?## | | ????????????????### ####### ## ##"? ## | | ????????????????## ##??### ### #" ?""# | | ????????????????### ????## ### ##" "# | | ????????????????### ?????#### ### ## "## | | ?????????????????## ?????##### ### # #### | | ?????????????????## ????????########### # # | | ?????????????????## ?????????#### ##### | | ??????????????????????????????## ???## | | ??????????????????????????????## | | ???????????????????????????? | | ???????????????????????????? | | ???????????????????????????? # | | ????????????????????????????####### ####### ## | | ????????????????????????????###################### | | ?????????????????????????????????####????######### | | ?????????????????????????????????????????????????? | | ?????????????????????????????????????????????????? | +----------------------------------------------------+ Best States ------------- Heat Dissipation 25 Energy Generation 10 Energy Capacity 250 Matter Stores 300 Matter Capacity 300 Sight Range 16 Terrain Scan Range 16 Terrain Scan Density 10 Evasion (%) 55 Item Schematics ----------------- None Robot Schematics ------------------ None Fabricated ------------ Nothing Alien Tech Used ----------------- None Achievements -------------- None Challenges ------------ None Game ------ Seed NuclearDirtyRail Manual? 0 Play Time 00:34:38 Cumulative 21.0 hours Start 2024.08.19 @ 01:48:52 End 2024.08.19 @ 02:21:34 Sessions 1 Manual Loads 0 Difficulty Rogue Special Mode None Game No. 43 Rogue 43 Adventurer 0 Explorer 0 Win Type - Total 0 Types 0/0/0/0/0/0/0/0/0 Lore% 11 Gallery% 15 Achievement% 13 Wizard Run 0 Options --------- Layout 0 ASCII 0 Keyboard 0 Movement Numpad Keybinds 0 Fullscreen 2 Font 24/Smallcaps Map View 113x50 Zoom Use 0% Tactical HUD 1 Map Filters NONE Filters NONE Steam 1 RUN: 2778ed7e-452d-410d-9cda-7560f5a9d09b